{"text_format":"3","workbook":"xlsx","n_sheets":26,"sheets":["Begin","1","2","3","4","5","6","7","8","9","10","11","12","13","14","15","16","17","18","19","20","21","22","23","24","Meer informatie"],"not_rendered":{"images":24,"defined_names":5,"pivot_tables":19},"read":"whole","date_system":"1900"}

{"sheet":"Begin","index":0,"n_rows":5,"n_cols":1,"rows_kept":5}
["Welkom\nInstructies voor schermlezers: Haal meer uit draaitabellen. Een eenvoudige draaitabel geeft u een algemeen overzicht van uw gegevens, maar soms hebt u gedetailleerde antwoorden nodig op specifieke vragen. Dan kan het toevoegen van kolomvelden en rijvelden handig zijn. \nIn de instructies wordt vermeld naar welke cellen u moet navigeren voor gebruik van een functie of voor nadere informatie.\nDruk op Ctrl+Page Down om te beginnen."]
["Haal meer uit draaitabellen"]
["Een eenvoudige draaitabel geeft u een algemeen overzicht van uw gegevens,\nmaar soms hebt u gedetailleerde antwoorden nodig op specifieke vragen.\nDan kan het toevoegen van kolomvelden en rijvelden handig zijn."]
["HANDIG OM TE WETEN\nHebt u uw eerste zelfstudie afgerond? Zo niet, ga dan naar Bestand > Nieuw en zoek naar Uw eerste draaitabel maken."]
["Druk op CTRL+HOME om terug naar boven te gaan. Als u de rondleiding wilt starten, drukt u op Ctrl+Page Down."]

{"sheet":"1","index":1,"n_rows":16,"n_cols":9,"rows_kept":16}
["In de eerste zelfstudie hebben we het concept van een draaitabel geïntroduceerd. We hebben ook uitgelegd hoe een rijveld gebruikt kan worden als voorwaarde die een waardeveld opdeelt.   "]
["De cellen H10 tot en met I14 bevatten een draaitabel waarin de gegevens in de cellen B8 tot en met E16 worden samengevat. De draaitabel bevat twee kolommen: Koper en Som van bedrag. De kolom Koper bevat de waarden Papa, Mama, Marloes en Eindtotaal. De kolom Som van bedrag bevat de waarden € 220, € 270, € 810 en € 1.300. De kolom Koper bestaat uit een rijveld en de kolom Som van bedrag bestaat uit een waardeveld."]
["Druk op CTRL+PAGE DOWN om door te gaan met deze zelfstudie. Druk op CTRL+PAGE UP om naar het vorige blad te gaan."]
[]
[]
[]
[]
[null,"Datum","Koper","Type","Bedrag"]
["Dit voorbeeld laat zien hoe het rijveld...","2017-01-01","Papa","Cadeaus",{"v":95,"d":"€ 95"}]
["...het waardeveld opdeelt.","2017-01-15","Mama","Eten",{"v":325,"d":"€ 325"},null,null,"Koper","Som van Bedrag"]
[null,"2017-01-17","Mama","Tickets",{"v":250,"d":"€ 250"},null,null,"Papa",{"v":220,"d":"€ 220"}]
[null,"2017-01-21","Papa","Eten",{"v":125,"d":"€ 125"},null,null,"Marloe",{"v":270,"d":"€ 270"}]
[null,"2017-02-02","Mama","Eten",{"v":235,"d":"€ 235"},null,null,"Mama",{"v":810,"d":"€ 810"}]
[null,"2017-02-20","Marloe","Muziek",{"v":20,"d":"€ 20"},null,null,"Eindtotaal",{"v":1300,"d":"€ 1,300"}]
[null,"2017-02-25","Marloe","Tickets",{"v":125,"d":"€ 125"}]
[null,"2017-02-25","Marloe","Sport",{"v":125,"d":"€ 125"}]

{"sheet":"2","index":2,"n_rows":108,"n_cols":7,"rows_kept":108}
["Wanneer u voor het eerst naar een draaitabel kijkt, wilt u er misschien meer antwoorden uithalen."]
["Wanneer u voor het eerst naar een draaitabel kijkt, hebt u mogelijk vragen als 'Wanneer hebben deze aankopen plaatsgevonden?', 'Waar heeft elke persoon geld aan uitgegeven?', 'Wat heeft Mama gekocht dat zo duur was?'."]
["In dit voorbeeld tonen de cellen F11 tot G15 dezelfde twee kolomdraaitabellen als eerder. De kolom Koper is een rijveld en bevat de waarden Papa, Mama, Marloe en Eindtotaal. De kolom Som van bedrag is het waardeveld en bevat de waarden € 220, € 270, € 810 en € 1.300. "]
["Druk op CTRL+PAGE DOWN om door te gaan met deze zelfstudie. Druk op CTRL+PAGE UP om naar het vorige blad te gaan."]
[]
[]
[]
[]
[]
[]
[{"$nulls":5},"Koper","Som van Bedrag"]
[{"$nulls":5},"Papa",{"v":220,"d":"€ 220"}]
[{"$nulls":5},"Marloe",{"v":270,"d":"€ 270"}]
[{"$nulls":5},"Mama",{"v":810,"d":"€ 810"}]
[{"$nulls":5},"Eindtotaal",{"v":1300,"d":"€ 1,300"}]
{"$rows_empty":84}
[null,"Datum","Koper","Type","Bedrag"]
[null,"2017-01-01","Papa","Cadeaus",{"v":95,"d":"€ 95"}]
[null,"2017-01-15","Mama","Eten",{"v":325,"d":"€ 325"}]
[null,"2017-01-17","Mama","Tickets",{"v":250,"d":"€ 250"}]
[null,"2017-01-21","Papa","Eten",{"v":125,"d":"€ 125"}]
[null,"2017-02-02","Mama","Eten",{"v":235,"d":"€ 235"}]
[null,"2017-02-20","Marloe","Muziek",{"v":20,"d":"€ 20"}]
[null,"2017-02-25","Marloe","Tickets",{"v":125,"d":"€ 125"}]
[null,"2017-02-25","Marloe","Sport",{"v":125,"d":"€ 125"}]

{"sheet":"3","index":3,"n_rows":108,"n_cols":7,"rows_kept":108}
["Dit zijn allemaal goede vragen, maar laten we ons op dit moment op één vraag concentreren."]
["Waar heeft elke persoon geld aan uitgegeven?"]
["Ter referentie: de cellen F11 tot en met G15 tonen dezelfde twee kolomdraaitabellen als eerder. De kolom Koper is een rijveld en bevat de waarden Papa, Mama, Marloe en Eindtotaal. De kolom Som van bedrag is het waardeveld en bevat de waarden € 220, € 270, € 810 en € 1.300. "]
["Druk op CTRL+PAGE DOWN om door te gaan met deze zelfstudie. Druk op CTRL+PAGE UP om naar het vorige blad te gaan."]
[]
[]
[]
[]
[]
[]
[{"$nulls":5},"Koper","Som van Bedrag"]
[{"$nulls":5},"Papa",{"v":220,"d":"€ 220"}]
[{"$nulls":5},"Marloe",{"v":270,"d":"€ 270"}]
[{"$nulls":5},"Mama",{"v":810,"d":"€ 810"}]
[{"$nulls":5},"Eindtotaal",{"v":1300,"d":"€ 1,300"}]
{"$rows_empty":84}
[null,"Datum","Koper","Type","Bedrag"]
[null,"2017-01-01","Papa","Cadeaus",{"v":95,"d":"€ 95"}]
[null,"2017-01-15","Mama","Eten",{"v":325,"d":"€ 325"}]
[null,"2017-01-17","Mama","Tickets",{"v":250,"d":"€ 250"}]
[null,"2017-01-21","Papa","Eten",{"v":125,"d":"€ 125"}]
[null,"2017-02-02","Mama","Eten",{"v":235,"d":"€ 235"}]
[null,"2017-02-20","Marloe","Muziek",{"v":20,"d":"€ 20"}]
[null,"2017-02-25","Marloe","Tickets",{"v":125,"d":"€ 125"}]
[null,"2017-02-25","Marloe","Sport",{"v":125,"d":"€ 125"}]

{"sheet":"4","index":4,"n_rows":108,"n_cols":9,"rows_kept":108}
["De laatste vraag was 'Waar heeft elke persoon geld aan uitgegeven?'"]
["We hebben die vraag beantwoord door een kolomveld voor Type toe te voegen. Als resultaat heeft de draaitabel nu vijf nieuwe kolommen die laten zien wat voor soort aankoop er is gedaan door elke persoon. "]
["Onze nieuwe draaitabel loopt nu van cel C10 tot en met I15, met kolommen voor Koper, Eten, Muziek, Sport, Tickets, Cadeaus en Eindtotaal. De Koper en Eindtotaal zijn hetzelfde als eerder en de nieuwe detailkolommen zijn er tussengevoegd."]
["Druk op CTRL+PAGE DOWN om door te gaan met deze zelfstudie. Druk op CTRL+PAGE UP om naar het vorige blad te gaan."]
[]
[]
[]
[]
[]
[null,null,"Som van Bedrag","Type"]
[null,null,"Koper","Eten","Muziek","Sport","Tickets","Cadeaus","Eindtotaal"]
[null,null,"Papa",{"v":125,"d":"€ 125"},{"$nulls":3},{"v":95,"d":"€ 95"},{"v":220,"d":"€ 220"}]
[null,null,"Marloe",null,{"v":20,"d":"€ 20"},{"v":125,"d":"€ 125"},{"v":125,"d":"€ 125"},null,{"v":270,"d":"€ 270"}]
[null,null,"Mama",{"v":560,"d":"€ 560"},null,null,{"v":250,"d":"€ 250"},null,{"v":810,"d":"€ 810"}]
[null,null,"Eindtotaal",{"v":685,"d":"€ 685"},{"v":20,"d":"€ 20"},{"v":125,"d":"€ 125"},{"v":375,"d":"€ 375"},{"v":95,"d":"€ 95"},{"v":1300,"d":"€ 1,300"}]
{"$rows_empty":84}
[null,"Datum","Koper","Type","Bedrag"]
[null,"2017-01-01","Papa","Cadeaus",{"v":95,"d":"€ 95"}]
[null,"2017-01-15","Mama","Eten",{"v":325,"d":"€ 325"}]
[null,"2017-01-17","Mama","Tickets",{"v":250,"d":"€ 250"}]
[null,"2017-01-21","Papa","Eten",{"v":125,"d":"€ 125"}]
[null,"2017-02-02","Mama","Eten",{"v":235,"d":"€ 235"}]
[null,"2017-02-20","Marloe","Muziek",{"v":20,"d":"€ 20"}]
[null,"2017-02-25","Marloe","Tickets",{"v":125,"d":"€ 125"}]
[null,"2017-02-25","Marloe","Sport",{"v":125,"d":"€ 125"}]

{"sheet":"5","index":5,"n_rows":108,"n_cols":9,"rows_kept":108}
["Als de draaitabel moeilijk te begrijpen is, kunt u dit proberen: Lees vanaf de linkerkant, dan vanaf de bovenkant en dan naar beneden. In onderstaand voorbeeld staat Papa in cel C12, Eten ter waarde van € 125 in cel D12, Cadeaus ter waarde van € 95 in cel E12 en een Eindtotaal van € 220 in cel I12. De rijen 13 en 14 tonen de gegevens van Marloe en Mama en rij 15 toont het Eindtotaal."]
["Druk op CTRL+PAGE DOWN om door te gaan met deze zelfstudie. Druk op CTRL+PAGE UP om naar het vorige blad te gaan."]
{"$rows_empty":7}
[null,null,"Som van Bedrag","Type"]
[null,null,"Koper","Eten","Cadeaus","Muziek","Sport","Tickets","Eindtotaal"]
[null,null,"Papa",{"v":125,"d":"€ 125"},{"v":95,"d":"€ 95"},{"$nulls":3},{"v":220,"d":"€ 220"}]
[null,null,"Marloe",null,null,{"v":20,"d":"€ 20"},{"v":125,"d":"€ 125"},{"v":125,"d":"€ 125"},{"v":270,"d":"€ 270"}]
[null,null,"Mama",{"v":560,"d":"€ 560"},{"$nulls":3},{"v":250,"d":"€ 250"},{"v":810,"d":"€ 810"}]
[null,null,"Eindtotaal",{"v":685,"d":"€ 685"},{"v":95,"d":"€ 95"},{"v":20,"d":"€ 20"},{"v":125,"d":"€ 125"},{"v":375,"d":"€ 375"},{"v":1300,"d":"€ 1,300"}]
{"$rows_empty":84}
[null,"Datum","Koper","Type","Bedrag"]
[null,"2017-01-01","Papa","Cadeaus",{"v":95,"d":"€ 95"}]
[null,"2017-01-15","Mama","Eten",{"v":325,"d":"€ 325"}]
[null,"2017-01-17","Mama","Tickets",{"v":250,"d":"€ 250"}]
[null,"2017-01-21","Papa","Eten",{"v":125,"d":"€ 125"}]
[null,"2017-02-02","Mama","Eten",{"v":235,"d":"€ 235"}]
[null,"2017-02-20","Marloe","Muziek",{"v":20,"d":"€ 20"}]
[null,"2017-02-25","Marloe","Tickets",{"v":125,"d":"€ 125"}]
[null,"2017-02-25","Marloe","Sport",{"v":125,"d":"€ 125"}]

{"sheet":"6","index":6,"n_rows":3,"n_cols":1,"rows_kept":3}
["U hoeft dit nu niet te doen. Over een paar stappen werkt u in een draaitabel. U brengt eerst details aan in de Kolommen. U doet dat door het veld Type in het gebied Kolommen te plaatsen."]
["In de afbeelding van de lijst met draaitabelvelden ziet u een pijlcursor waarmee het veld Type naar het gebied Kolommen wordt gesleept"]
["Druk op CTRL+PAGE DOWN om door te gaan met deze zelfstudie. Druk op CTRL+PAGE UP om naar het vorige blad te gaan."]

{"sheet":"7","index":7,"n_rows":108,"n_cols":8,"rows_kept":108}
["1. Het draaitabelgebied voor dit voorbeeld zijn de cellen B13 tot en met C17. Ga naar een van deze cellen."]
["2. Druk op Alt+JS, L2 om de lijst met draaitabelvelden te openen. Het tekstvak Zoeken heeft standaard de focus: Zoeken bewerken"]
["3. Druk op de pijltoetsen om het veld Type te selecteren. Als dat veld is geselecteerd, drukt u op de SPATIEBALK om het veld Type toe te voegen aan het gebied Rijen. "]
["4. Druk op de Tab-toets om het veld Type te selecteren. Druk op Enter en druk vervolgens op de pijltoetsen om Naar kolomlabels verplaatsen te selecteren en druk op Enter om het veld Type toe te voegen aan het gebied Kolommen. Druk op Alt+JS+L2 om het deelvenster Draaitabelvelden af te sluiten."]
["Druk op Ctrl+Page Down om door te gaan met deze zelfstudie. Druk op CTRL+PAGE UP om naar het vorige blad te gaan."]
[]
[]
[]
[{"$nulls":7},{"$f":"IF(AND($B$14=\"Koper\",$H$17=810),\"Good job! U hebt uw eerste\",\" \")","v":" "}]
[{"$nulls":7},{"$f":"IF(AND($B$14=\"Koper\",$H$17=810),\"kolomveld geplaatst. Klik op\",\" \")","v":" "}]
[{"$nulls":7},{"$f":"IF(AND($B$14=\"Koper\",$H$17=810),\"Volgende om door te gaan...\",\" \")","v":" "}]
[]
[null,"Koper","Som van Bedrag"]
[null,"Papa",{"v":220,"d":"€ 220"}]
[null,"Marloe",{"v":270,"d":"€ 270"}]
[null,"Mama",{"v":810,"d":"€ 810"}]
[null,"Eindtotaal",{"v":1300,"d":"€ 1,300"}]
{"$rows_empty":82}
[null,"Datum","Koper","Type","Bedrag"]
[null,"2017-01-01","Papa","Cadeaus",{"v":95,"d":"€ 95"}]
[null,"2017-01-15","Mama","Eten",{"v":325,"d":"€ 325"}]
[null,"2017-01-17","Mama","Tickets",{"v":250,"d":"€ 250"}]
[null,"2017-01-21","Papa","Eten",{"v":125,"d":"€ 125"}]
[null,"2017-02-02","Mama","Eten",{"v":235,"d":"€ 235"}]
[null,"2017-02-20","Marloe","Muziek",{"v":20,"d":"€ 20"}]
[null,"2017-02-25","Marloe","Tickets",{"v":125,"d":"€ 125"}]
[null,"2017-02-25","Marloe","Sport",{"v":125,"d":"€ 125"}]

{"sheet":"8","index":8,"n_rows":108,"n_cols":9,"rows_kept":108}
["Laten we de draaitabel die u net hebt gemaakt nog eens bekijken, maar dit keer hebben we speciale kleuren toegevoegd om de rij-, kolom- en waardevelden te onderscheiden."]
["De rijvelden lopen van de cel C10 tot en met C13 en hebben een gele achtergrond."]
["De kolomvelden lopen van de cel D9 tot en met H10 en hebben een oranje achtergrond."]
["De waardevelden lopen van de cel D11 tot en met H13 en hebben een blauwe achtergrond."]
["Druk op CTRL+PAGE DOWN om door te gaan met deze zelfstudie. Druk op CTRL+PAGE UP om naar het vorige blad te gaan."]
[]
[]
[]
[null,null,"Som van Bedrag","Type"]
[null,null,"Koper","Eten","Cadeaus","Muziek","Sport","Tickets","Eindtotaal"]
[null,null,"Papa",{"v":125,"d":"€ 125"},{"v":95,"d":"€ 95"},{"$nulls":3},{"v":220,"d":"€ 220"}]
[null,null,"Marloe",null,null,{"v":20,"d":"€ 20"},{"v":125,"d":"€ 125"},{"v":125,"d":"€ 125"},{"v":270,"d":"€ 270"}]
[null,null,"Mama",{"v":560,"d":"€ 560"},{"$nulls":3},{"v":250,"d":"€ 250"},{"v":810,"d":"€ 810"}]
[null,null,"Eindtotaal",{"v":685,"d":"€ 685"},{"v":95,"d":"€ 95"},{"v":20,"d":"€ 20"},{"v":125,"d":"€ 125"},{"v":375,"d":"€ 375"},{"v":1300,"d":"€ 1,300"}]
{"$rows_empty":85}
[null,"Datum","Koper","Type","Bedrag"]
[null,"2017-01-01","Papa","Cadeaus",{"v":95,"d":"€ 95"}]
[null,"2017-01-15","Mama","Eten",{"v":325,"d":"€ 325"}]
[null,"2017-01-17","Mama","Tickets",{"v":250,"d":"€ 250"}]
[null,"2017-01-21","Papa","Eten",{"v":125,"d":"€ 125"}]
[null,"2017-02-02","Mama","Eten",{"v":235,"d":"€ 235"}]
[null,"2017-02-20","Marloe","Muziek",{"v":20,"d":"€ 20"}]
[null,"2017-02-25","Marloe","Tickets",{"v":125,"d":"€ 125"}]
[null,"2017-02-25","Marloe","Sport",{"v":125,"d":"€ 125"}]

{"sheet":"9","index":9,"n_rows":3,"n_cols":1,"rows_kept":3}
["U kunt het ook op deze manier bekijken: Het rijveld bevindt zich aan de linkerkant en het kolomveld aan de bovenkant. Elk van deze velden biedt een voorwaarde aan het waardeveld, dat ze optelt."]
["Een conceptuele afbeelding toont een vierkant gebied met 4 gedeelten, met linksonder in geel het Rijveld, rechtsboven in oranje het Kolomveld en rechtsonder in blauw het Waardeveld."]
["Druk op CTRL+PAGE DOWN om door te gaan met deze zelfstudie. Druk op CTRL+PAGE UP om naar het vorige blad te gaan."]

{"sheet":"10","index":10,"n_rows":3,"n_cols":1,"rows_kept":3}
["Bekijk het op deze manier wanneer u de lijst met velden gebruikt. Het rijveld bevindt zich aan de linkerkant en het kolomveld aan de bovenkant. Elk van deze velden biedt een voorwaarde aan het waardeveld, dat ze optelt."]
["Een conceptuele afbeelding toont de Lijst met velden van de draaitabelvelden, met het Rijveld linksonder in geel, het Kolomveld rechtsboven in oranje en het Waardeveld rechtsonder in blauw."]
["Druk op CTRL+PAGE DOWN om door te gaan met deze zelfstudie. Druk op CTRL+PAGE UP om naar het vorige blad te gaan."]

{"sheet":"11","index":11,"n_rows":121,"n_cols":24,"rows_kept":121}
["Eén ding moet u weten: Als een kolomveld veel kolomveld toevoegt aan een draaitabel, wordt de draaitabel erg breed. "]
["In dit voorbeeld loopt de draaitabel van cel C10 tot en met X15, omdat het kolomveld 20 nieuwe kolommen heeft toegevoegd. Dat zijn veel kolommen. Hierdoor moet er vaak gebladerd worden..."]
["Druk op CTRL+PAGE DOWN om door te gaan met deze zelfstudie. Druk op CTRL+PAGE UP om naar het vorige blad te gaan."]
[]
[]
[]
[]
[]
[]
[null,null,"Som van Bedrag","Type"]
[null,null,"Koper","Autoverzekering","Belasting","Boeken","Brandstof","Elektriciteit","Elektronica","Eten","Gezondheid","Kleding","Maaltijden","Mondverzorging","Muziek","Muzieklessen","Onroerend-goedverzekering","Parkeren","Sport","Sportclub","Tickets","Vliegtarief","Ziektekostenverzekering","Eindtotaal"]
[null,null,"Mama",{"v":74,"d":"€ 74"},null,null,{"v":74,"d":"€ 74"},{"v":70,"d":"€ 70"},null,{"v":470,"d":"€ 470"},{"v":74,"d":"€ 74"},null,null,{"v":235,"d":"€ 235"},null,null,{"v":235,"d":"€ 235"},null,null,{"v":125,"d":"€ 125"},null,null,{"v":70,"d":"€ 70"},{"v":1427,"d":"€ 1,427"}]
[null,null,"Marloe",null,null,{"v":250,"d":"€ 250"},null,null,{"v":125,"d":"€ 125"},null,null,{"v":125,"d":"€ 125"},{"v":20,"d":"€ 20"},null,{"v":20,"d":"€ 20"},{"v":250,"d":"€ 250"},null,{"v":20,"d":"€ 20"},null,null,{"v":125,"d":"€ 125"},null,null,{"v":935,"d":"€ 935"}]
[null,null,"Papa",null,{"v":500,"d":"€ 500"},{"$nulls":13},{"v":1000,"d":"€ 1,000"},null,null,{"v":500,"d":"€ 500"},null,{"v":2000,"d":"€ 2,000"}]
[null,null,"Eindtotaal",{"v":74,"d":"€ 74"},{"v":500,"d":"€ 500"},{"v":250,"d":"€ 250"},{"v":74,"d":"€ 74"},{"v":70,"d":"€ 70"},{"v":125,"d":"€ 125"},{"v":470,"d":"€ 470"},{"v":74,"d":"€ 74"},{"v":125,"d":"€ 125"},{"v":20,"d":"€ 20"},{"v":235,"d":"€ 235"},{"v":20,"d":"€ 20"},{"v":250,"d":"€ 250"},{"v":235,"d":"€ 235"},{"v":20,"d":"€ 20"},{"v":1000,"d":"€ 1,000"},{"v":125,"d":"€ 125"},{"v":125,"d":"€ 125"},{"v":500,"d":"€ 500"},{"v":70,"d":"€ 70"},{"v":4362,"d":"€ 4,362"}]
{"$rows_empty":84}
[null,"Datum","Koper","Type","Bedrag"]
[null,"2017-01-17","Papa","Sport",{"v":1000,"d":"€ 1,000"}]
[null,"2017-01-17","Papa","Vliegtarief",{"v":500,"d":"€ 500"}]
[null,"2017-01-17","Papa","Belasting",{"v":500,"d":"€ 500"}]
[null,"2017-02-20","Marloe","Muziek",{"v":20,"d":"€ 20"}]
[null,"2017-02-25","Marloe","Tickets",{"v":125,"d":"€ 125"}]
[null,"2017-01-21","Marloe","Boeken",{"v":250,"d":"€ 250"}]
[null,"2017-02-20","Marloe","Maaltijden",{"v":20,"d":"€ 20"}]
[null,"2017-02-25","Marloe","Kleding",{"v":125,"d":"€ 125"}]
[null,"2017-01-21","Marloe","Muzieklessen",{"v":250,"d":"€ 250"}]
[null,"2017-02-20","Marloe","Parkeren",{"v":20,"d":"€ 20"}]
[null,"2017-02-25","Marloe","Elektronica",{"v":125,"d":"€ 125"}]
[null,"2017-01-01","Mama","Brandstof",{"v":74,"d":"€ 74"}]
[null,"2017-01-15","Mama","Eten",{"v":235,"d":"€ 235"}]
[null,"2017-01-21","Mama","Sportclub",{"v":125,"d":"€ 125"}]
[null,"2017-02-02","Mama","Eten",{"v":235,"d":"€ 235"}]
[null,"2017-01-01","Mama","Gezondheid",{"v":74,"d":"€ 74"}]
[null,"2017-01-15","Mama","Elektriciteit",{"v":70,"d":"€ 70"}]
[null,"2017-02-02","Mama","Mondverzorging",{"v":235,"d":"€ 235"}]
[null,"2017-01-01","Mama","Autoverzekering",{"v":74,"d":"€ 74"}]
[null,"2017-01-15","Mama","Ziektekostenverzekering",{"v":70,"d":"€ 70"}]
[null,"2017-02-02","Mama","Onroerend-goedverzekering",{"v":235,"d":"€ 235"}]

{"sheet":"12","index":12,"n_rows":119,"n_cols":5,"rows_kept":119}
["Er is een alternatief voor draaitabellen die extra breed zijn: u kunt in plaats hiervan een tweede rijveld gebruiken. Een tweede rijveld wordt ingesprongen weergegeven onder het eerste rijveld."]
["In dit voorbeeld is er een draaitabel van cel D8 tot en met E32. Papa, Marloe en Mama zijn de eerste rijvelden in kolom D. Dan staan daaronder de soort uitgaven als tweede rijvelden met onderwerpen als Sport, Vliegtarief, Maaltijden, enz."]
["HANDIG OM TE WETEN\nMet een tweede rijveld wordt een draaitabel met verticale oriëntatie gemaakt in plaats van een horizontale. Sommige mensen vinden verticale draaitabellen makkelijker te lezen, omdat er niet zoveel van links naar rechts hoeft te worden gebladerd."]
["EXCELLIAANS\nSoms wordt een tweede rijveld een 'secundair rijveld' genoemd."]
["Druk op CTRL+PAGE DOWN om door te gaan met deze zelfstudie. Druk op CTRL+PAGE UP om naar het vorige blad te gaan."]
[]
[]
[{"$nulls":3},"Rijlabels","Som van Bedrag"]
[{"$nulls":3},"Papa",{"v":2000,"d":"€ 2,000"}]
[{"$nulls":3},"Belasting",{"v":500,"d":"€ 500"}]
[{"$nulls":3},"Sport",{"v":1000,"d":"€ 1,000"}]
[{"$nulls":3},"Vliegtarief",{"v":500,"d":"€ 500"}]
[{"$nulls":3},"Marloe",{"v":935,"d":"€ 935"}]
[{"$nulls":3},"Boeken",{"v":250,"d":"€ 250"}]
[{"$nulls":3},"Elektronica",{"v":125,"d":"€ 125"}]
[{"$nulls":3},"Kleding",{"v":125,"d":"€ 125"}]
[{"$nulls":3},"Maaltijden",{"v":20,"d":"€ 20"}]
[{"$nulls":3},"Muziek",{"v":20,"d":"€ 20"}]
[{"$nulls":3},"Muzieklessen",{"v":250,"d":"€ 250"}]
[{"$nulls":3},"Parkeren",{"v":20,"d":"€ 20"}]
[{"$nulls":3},"Tickets",{"v":125,"d":"€ 125"}]
[{"$nulls":3},"Mama",{"v":1427,"d":"€ 1,427"}]
[{"$nulls":3},"Autoverzekering",{"v":74,"d":"€ 74"}]
[{"$nulls":3},"Brandstof",{"v":74,"d":"€ 74"}]
[{"$nulls":3},"Elektriciteit",{"v":70,"d":"€ 70"}]
[{"$nulls":3},"Eten",{"v":470,"d":"€ 470"}]
[{"$nulls":3},"Gezondheid",{"v":74,"d":"€ 74"}]
[{"$nulls":3},"Mondverzorging",{"v":235,"d":"€ 235"}]
[{"$nulls":3},"Onroerend-goedverzekering",{"v":235,"d":"€ 235"}]
[{"$nulls":3},"Sportclub",{"v":125,"d":"€ 125"}]
[{"$nulls":3},"Ziektekostenverzekering",{"v":70,"d":"€ 70"}]
[{"$nulls":3},"Eindtotaal",{"v":4362,"d":"€ 4,362"}]
{"$rows_empty":65}
[null,"Datum","Koper","Type","Bedrag"]
[null,"2017-01-17","Papa","Sport",{"v":1000,"d":"€ 1,000"}]
[null,"2017-01-17","Papa","Vliegtarief",{"v":500,"d":"€ 500"}]
[null,"2017-01-17","Papa","Belasting",{"v":500,"d":"€ 500"}]
[null,"2017-02-20","Marloe","Muziek",{"v":20,"d":"€ 20"}]
[null,"2017-02-25","Marloe","Tickets",{"v":125,"d":"€ 125"}]
[null,"2017-01-21","Marloe","Boeken",{"v":250,"d":"€ 250"}]
[null,"2017-02-20","Marloe","Maaltijden",{"v":20,"d":"€ 20"}]
[null,"2017-02-25","Marloe","Kleding",{"v":125,"d":"€ 125"}]
[null,"2017-01-21","Marloe","Muzieklessen",{"v":250,"d":"€ 250"}]
[null,"2017-02-20","Marloe","Parkeren",{"v":20,"d":"€ 20"}]
[null,"2017-02-25","Marloe","Elektronica",{"v":125,"d":"€ 125"}]
[null,"2017-01-01","Mama","Brandstof",{"v":74,"d":"€ 74"}]
[null,"2017-01-15","Mama","Eten",{"v":235,"d":"€ 235"}]
[null,"2017-01-21","Mama","Sportclub",{"v":125,"d":"€ 125"}]
[null,"2017-02-02","Mama","Eten",{"v":235,"d":"€ 235"}]
[null,"2017-01-01","Mama","Gezondheid",{"v":74,"d":"€ 74"}]
[null,"2017-01-15","Mama","Elektriciteit",{"v":70,"d":"€ 70"}]
[null,"2017-02-02","Mama","Mondverzorging",{"v":235,"d":"€ 235"}]
[null,"2017-01-01","Mama","Autoverzekering",{"v":74,"d":"€ 74"}]
[null,"2017-01-15","Mama","Ziektekostenverzekering",{"v":70,"d":"€ 70"}]
[null,"2017-02-02","Mama","Onroerend-goedverzekering",{"v":235,"d":"€ 235"}]

{"sheet":"13","index":13,"n_rows":3,"n_cols":1,"rows_kept":3}
["Op het volgende blad voegt u een tweede rijveld toe. En dat doet u door het veld Type onder het veld Koper in het rijveld te plaatsen."]
["Een afbeelding van de lijst met draaitabelvelden toont een pijlcursor waarmee het veld Type naar het gebied Rijen wordt gesleept."]
["Druk op CTRL+PAGE DOWN om door te gaan met deze zelfstudie. Druk op CTRL+PAGE UP om naar het vorige blad te gaan."]

{"sheet":"14","index":14,"n_rows":122,"n_cols":9,"rows_kept":122}
["1. Het draaitabelgebied voor dit voorbeeld zijn de cellen B13 tot en met C17. Ga naar een van deze cellen. "]
["2. Druk op Alt+JS, L om de lijst met draaitabelvelden te openen. Het tekstvak Zoeken heeft standaard de focus: 'Typ woorden waarnaar u wilt zoeken' om te bewerken. Typ niets, druk in plaats daarvan een keer op Tab. OPMERKING: als de Lijst met velden niet verschijnt, druk dan opnieuw op ALT+JS, L2."]
["3. Gebruik de pijltoetsen om naar het veld Type te gaan. Druk op de Spatiebalk om het veld Type toe te voegen aan het gebied Rijen. "]
["4. Druk op ESC om het deelvenster Draaitabelvelden te sluiten. "]
["Druk op CTRL+PAGE DOWN om door te gaan met deze zelfstudie. Druk op CTRL+PAGE UP om naar het vorige blad te gaan.",{"$nulls":7},{"$f":"IF(AND($B$15=\"Belasting\",$C$36=70),\"Het gaat goed. U hebt een\",\" \")","v":" "}]
[{"$nulls":8},{"$f":"IF(AND($B$15=\"Belasting\",$C$36=70),\"tweede rijveld toegevoegd\",\" \")","v":" "}]
[{"$nulls":8},{"$f":"IF(AND($B$15=\"Belasting\",$C$36=70),\"aan de draaitabel. Blader naar \",\" \")","v":" "}]
[{"$nulls":8},{"$f":"IF(AND($B$15=\"Belasting\",$C$36=70),\"beneden en klik op Volgende...\",\" \")","v":" "}]
[]
[]
[]
[]
[null,"Rijlabels","Som van Bedrag"]
[null,"Papa",{"v":2000,"d":"€ 2,000"}]
[null,"Marloe",{"v":935,"d":"€ 935"}]
[null,"Mama",{"v":1427,"d":"€ 1,427"}]
[null,"Eindtotaal",{"v":4362,"d":"€ 4,362"}]
{"$rows_empty":83}
[null,"Datum","Koper","Type","Bedrag"]
[null,"2017-01-17","Papa","Sport",{"v":1000,"d":"€ 1,000"}]
[null,"2017-01-17","Papa","Vliegtarief",{"v":500,"d":"€ 500"}]
[null,"2017-01-17","Papa","Belasting",{"v":500,"d":"€ 500"}]
[null,"2017-02-20","Marloe","Muziek",{"v":20,"d":"€ 20"}]
[null,"2017-02-25","Marloe","Tickets",{"v":125,"d":"€ 125"}]
[null,"2017-01-21","Marloe","Boeken",{"v":250,"d":"€ 250"}]
[null,"2017-02-20","Marloe","Maaltijden",{"v":20,"d":"€ 20"}]
[null,"2017-02-25","Marloe","Kleding",{"v":125,"d":"€ 125"}]
[null,"2017-01-21","Marloe","Muzieklessen",{"v":250,"d":"€ 250"}]
[null,"2017-02-20","Marloe","Parkeren",{"v":20,"d":"€ 20"}]
[null,"2017-02-25","Marloe","Elektronica",{"v":125,"d":"€ 125"}]
[null,"2017-01-01","Mama","Brandstof",{"v":74,"d":"€ 74"}]
[null,"2017-01-15","Mama","Eten",{"v":235,"d":"€ 235"}]
[null,"2017-01-21","Mama","Sportclub",{"v":125,"d":"€ 125"}]
[null,"2017-02-02","Mama","Eten",{"v":235,"d":"€ 235"}]
[null,"2017-01-01","Mama","Gezondheid",{"v":74,"d":"€ 74"}]
[null,"2017-01-15","Mama","Elektriciteit",{"v":70,"d":"€ 70"}]
[null,"2017-02-02","Mama","Mondverzorging",{"v":235,"d":"€ 235"}]
[null,"2017-01-01","Mama","Autoverzekering",{"v":74,"d":"€ 74"}]
[null,"2017-01-15","Mama","Ziektekostenverzekering",{"v":70,"d":"€ 70"}]
[null,"2017-02-02","Mama","Onroerend-goedverzekering",{"v":235,"d":"€ 235"}]

{"sheet":"15","index":15,"n_rows":121,"n_cols":7,"rows_kept":121}
["Als u de draaitabel wilt vereenvoudigen, kunt u de gegevens voor het tweede rijveld 'naar boven' samenvouwen en ze verbergen. "]
["De draaitabel voor dit voorbeeld bevindt zich in de cellen F7 tot en met G31. Selecteer cel F8 om het eerste rijveld voor Papa te kiezen. Druk vervolgens op Alt+JS >U om het tweede veld uit te vouwen of op S om het samen te vouwen."]
["Druk op Ctrl+Page Down om door te gaan met deze zelfstudie. Druk op CTRL+PAGE UP om naar het vorige blad te gaan."]
[]
[]
[{"$nulls":5},{"$f":"IF(AND($F$9=\"Marloe\",$G$9=935),\"Goed zo.\",\" \")","v":" "}]
[{"$nulls":5},"Rijlabels","Som van Bedrag"]
[{"$nulls":5},"Papa",{"v":2000,"d":"€ 2,000"}]
[{"$nulls":5},"Belasting",{"v":500,"d":"€ 500"}]
[{"$nulls":5},"Sport",{"v":1000,"d":"€ 1,000"}]
[{"$nulls":5},"Vliegtarief",{"v":500,"d":"€ 500"}]
[{"$nulls":5},"Marloe",{"v":935,"d":"€ 935"}]
[{"$nulls":5},"Boeken",{"v":250,"d":"€ 250"}]
[{"$nulls":5},"Elektronica",{"v":125,"d":"€ 125"}]
[{"$nulls":5},"Kleding",{"v":125,"d":"€ 125"}]
[{"$nulls":5},"Maaltijden",{"v":20,"d":"€ 20"}]
[{"$nulls":5},"Muziek",{"v":20,"d":"€ 20"}]
[{"$nulls":5},"Muzieklessen",{"v":250,"d":"€ 250"}]
[{"$nulls":5},"Parkeren",{"v":20,"d":"€ 20"}]
[{"$nulls":5},"Tickets",{"v":125,"d":"€ 125"}]
[{"$nulls":5},"Mama",{"v":1427,"d":"€ 1,427"}]
[{"$nulls":5},"Autoverzekering",{"v":74,"d":"€ 74"}]
[{"$nulls":5},"Brandstof",{"v":74,"d":"€ 74"}]
[{"$nulls":5},"Elektriciteit",{"v":70,"d":"€ 70"}]
[{"$nulls":5},"Eten",{"v":470,"d":"€ 470"}]
[{"$nulls":5},"Gezondheid",{"v":74,"d":"€ 74"}]
[{"$nulls":5},"Mondverzorging",{"v":235,"d":"€ 235"}]
[{"$nulls":5},"Onroerend-goedverzekering",{"v":235,"d":"€ 235"}]
[{"$nulls":5},"Sportclub",{"v":125,"d":"€ 125"}]
[{"$nulls":5},"Ziektekostenverzekering",{"v":70,"d":"€ 70"}]
[{"$nulls":5},"Eindtotaal",{"v":4362,"d":"€ 4,362"}]
{"$rows_empty":68}
[null,"Datum","Koper","Type","Bedrag"]
[null,"2017-01-17","Papa","Sport",{"v":1000,"d":"€ 1,000"}]
[null,"2017-01-17","Papa","Vliegtarief",{"v":500,"d":"€ 500"}]
[null,"2017-01-17","Papa","Belasting",{"v":500,"d":"€ 500"}]
[null,"2017-02-20","Marloe","Muziek",{"v":20,"d":"€ 20"}]
[null,"2017-02-25","Marloe","Tickets",{"v":125,"d":"€ 125"}]
[null,"2017-01-21","Marloe","Boeken",{"v":250,"d":"€ 250"}]
[null,"2017-02-20","Marloe","Maaltijden",{"v":20,"d":"€ 20"}]
[null,"2017-02-25","Marloe","Kleding",{"v":125,"d":"€ 125"}]
[null,"2017-01-21","Marloe","Muzieklessen",{"v":250,"d":"€ 250"}]
[null,"2017-02-20","Marloe","Parkeren",{"v":20,"d":"€ 20"}]
[null,"2017-02-25","Marloe","Elektronica",{"v":125,"d":"€ 125"}]
[null,"2017-01-01","Mama","Brandstof",{"v":74,"d":"€ 74"}]
[null,"2017-01-15","Mama","Eten",{"v":235,"d":"€ 235"}]
[null,"2017-01-21","Mama","Sportclub",{"v":125,"d":"€ 125"}]
[null,"2017-02-02","Mama","Eten",{"v":235,"d":"€ 235"}]
[null,"2017-01-01","Mama","Gezondheid",{"v":74,"d":"€ 74"}]
[null,"2017-01-15","Mama","Elektriciteit",{"v":70,"d":"€ 70"}]
[null,"2017-02-02","Mama","Mondverzorging",{"v":235,"d":"€ 235"}]
[null,"2017-01-01","Mama","Autoverzekering",{"v":74,"d":"€ 74"}]
[null,"2017-01-15","Mama","Ziektekostenverzekering",{"v":70,"d":"€ 70"}]
[null,"2017-02-02","Mama","Onroerend-goedverzekering",{"v":235,"d":"€ 235"}]

{"sheet":"16","index":16,"n_rows":121,"n_cols":7,"rows_kept":121}
["U kunt ook het volledige rijveld samen- of uitvouwen, om de draaitabel nog meer te vereenvoudigen."]
["Dit is de sleutel"]
["Selecteer het gegevensbereik van de cellen F7 tot en met G31, ga dan naar ALT+JS > S om de hele groep samen te voegen. Omgekeerd zal ALT+JS > U de hele groep uitvouwen."]
["Druk op CTRL+PAGE DOWN om door te gaan met deze zelfstudie. Druk op CTRL+PAGE UP om naar het vorige blad te gaan."]
[]
[{"$nulls":5},{"$f":"IF(AND($F$9=\"Marloe\",$G$9=935),\"Helemaal juist.\",\" \")","v":" "}]
[{"$nulls":5},"Rijlabels","Som van Bedrag"]
[{"$nulls":5},"Papa",{"v":2000,"d":"€ 2,000"}]
[{"$nulls":5},"Belasting",{"v":500,"d":"€ 500"}]
[{"$nulls":5},"Sport",{"v":1000,"d":"€ 1,000"}]
[{"$nulls":5},"Vliegtarief",{"v":500,"d":"€ 500"}]
[{"$nulls":5},"Marloe",{"v":935,"d":"€ 935"}]
[{"$nulls":5},"Boeken",{"v":250,"d":"€ 250"}]
[{"$nulls":5},"Elektronica",{"v":125,"d":"€ 125"}]
[{"$nulls":5},"Kleding",{"v":125,"d":"€ 125"}]
[{"$nulls":5},"Maaltijden",{"v":20,"d":"€ 20"}]
[{"$nulls":5},"Muziek",{"v":20,"d":"€ 20"}]
[{"$nulls":5},"Muzieklessen",{"v":250,"d":"€ 250"}]
[{"$nulls":5},"Parkeren",{"v":20,"d":"€ 20"}]
[{"$nulls":5},"Tickets",{"v":125,"d":"€ 125"}]
[{"$nulls":5},"Mama",{"v":1427,"d":"€ 1,427"}]
[{"$nulls":5},"Autoverzekering",{"v":74,"d":"€ 74"}]
[{"$nulls":5},"Brandstof",{"v":74,"d":"€ 74"}]
[{"$nulls":5},"Elektriciteit",{"v":70,"d":"€ 70"}]
[{"$nulls":5},"Eten",{"v":470,"d":"€ 470"}]
[{"$nulls":5},"Gezondheid",{"v":74,"d":"€ 74"}]
[{"$nulls":5},"Mondverzorging",{"v":235,"d":"€ 235"}]
[{"$nulls":5},"Onroerend-goedverzekering",{"v":235,"d":"€ 235"}]
[{"$nulls":5},"Sportclub",{"v":125,"d":"€ 125"}]
[{"$nulls":5},"Ziektekostenverzekering",{"v":70,"d":"€ 70"}]
[{"$nulls":5},"Eindtotaal",{"v":4362,"d":"€ 4,362"}]
{"$rows_empty":68}
[null,"Datum","Koper","Type","Bedrag"]
[null,"2017-01-17","Papa","Sport",{"v":1000,"d":"€ 1,000"}]
[null,"2017-01-17","Papa","Vliegtarief",{"v":500,"d":"€ 500"}]
[null,"2017-01-17","Papa","Belasting",{"v":500,"d":"€ 500"}]
[null,"2017-02-20","Marloe","Muziek",{"v":20,"d":"€ 20"}]
[null,"2017-02-25","Marloe","Tickets",{"v":125,"d":"€ 125"}]
[null,"2017-01-21","Marloe","Boeken",{"v":250,"d":"€ 250"}]
[null,"2017-02-20","Marloe","Maaltijden",{"v":20,"d":"€ 20"}]
[null,"2017-02-25","Marloe","Kleding",{"v":125,"d":"€ 125"}]
[null,"2017-01-21","Marloe","Muzieklessen",{"v":250,"d":"€ 250"}]
[null,"2017-02-20","Marloe","Parkeren",{"v":20,"d":"€ 20"}]
[null,"2017-02-25","Marloe","Elektronica",{"v":125,"d":"€ 125"}]
[null,"2017-01-01","Mama","Brandstof",{"v":74,"d":"€ 74"}]
[null,"2017-01-15","Mama","Eten",{"v":235,"d":"€ 235"}]
[null,"2017-01-21","Mama","Sportclub",{"v":125,"d":"€ 125"}]
[null,"2017-02-02","Mama","Eten",{"v":235,"d":"€ 235"}]
[null,"2017-01-01","Mama","Gezondheid",{"v":74,"d":"€ 74"}]
[null,"2017-01-15","Mama","Elektriciteit",{"v":70,"d":"€ 70"}]
[null,"2017-02-02","Mama","Mondverzorging",{"v":235,"d":"€ 235"}]
[null,"2017-01-01","Mama","Autoverzekering",{"v":74,"d":"€ 74"}]
[null,"2017-01-15","Mama","Ziektekostenverzekering",{"v":70,"d":"€ 70"}]
[null,"2017-02-02","Mama","Onroerend-goedverzekering",{"v":235,"d":"€ 235"}]

{"sheet":"17","index":17,"n_rows":107,"n_cols":13,"rows_kept":107}
["U kunt ook meer dan één kolomveld gebruiken. En die kunnen ook worden samen- of uitgevouwen."]
["De draaitabel voor dit voorbeeld bevindt zich in de cellen B13 tot en met M19. In dit geval hebben we een categorie Type in het gedeelte Kolommen met onder andere de onderwerpen Eten en Gas, water en elektra."]
["PROBEER DIT EENS\nSelecteer Eten in cel C14 en ga naar ALT+JS > S om het hele veld samen te vouwen. ALT+JS > U vouwt het uit."]
["Druk op CTRL+PAGE DOWN om door te gaan met deze zelfstudie. Druk op CTRL+PAGE UP om naar het vorige blad te gaan."]
{"$rows_empty":7}
[null,null,{"$f":"IF(AND($C$16=398,$D$15=\"jan\"),\"Goed gedaan.\",\" \")","v":" "}]
[null,"Som van Bedrag","Kolomlabels"]
[null,null,"Eten",{"$nulls":3},"Totaal Eten","Gas, water en elektra",{"$nulls":3},"Totaal Gas, water en elektra","Eindtotaal"]
[null,"Rijlabels","jan","Feb","mrt","apr",null,"jan","Feb","mrt","apr"]
[null,"Marloe",{"v":74,"d":"€ 74"},{"v":74,"d":"€ 74"},{"v":125,"d":"€ 125"},{"v":125,"d":"€ 125"},{"v":398,"d":"€ 398"},{"$nulls":5},{"v":398,"d":"€ 398"}]
[null,"Papa",{"v":235,"d":"€ 235"},{"v":235,"d":"€ 235"},{"v":235,"d":"€ 235"},{"v":74,"d":"€ 74"},{"v":779,"d":"€ 779"},{"$nulls":5},{"v":779,"d":"€ 779"}]
[null,"Mama",{"$nulls":5},{"v":1000,"d":"€ 1,000"},{"v":1000,"d":"€ 1,000"},{"v":20,"d":"€ 20"},{"v":70,"d":"€ 70"},{"v":2090,"d":"€ 2,090"},{"v":2090,"d":"€ 2,090"}]
[null,"Eindtotaal",{"v":309,"d":"€ 309"},{"v":309,"d":"€ 309"},{"v":360,"d":"€ 360"},{"v":199,"d":"€ 199"},{"v":1177,"d":"€ 1,177"},{"v":1000,"d":"€ 1,000"},{"v":1000,"d":"€ 1,000"},{"v":20,"d":"€ 20"},{"v":70,"d":"€ 70"},{"v":2090,"d":"€ 2,090"},{"v":3267,"d":"€ 3,267"}]
{"$rows_empty":75}
[null,"Maand","Koper","Type","Bedrag"]
[null,"jan","Marloe","Eten",{"v":74,"d":"€ 74"}]
[null,"Jan","Papa","Eten",{"v":235,"d":"€ 235"}]
[null,"Jan","Mama","Gas, water en elektra",{"v":1000,"d":"€ 1,000"}]
[null,"Feb","Marloe","Eten",{"v":74,"d":"€ 74"}]
[null,"Feb","Papa","Eten",{"v":235,"d":"€ 235"}]
[null,"feb","Mama","Gas, water en elektra",{"v":1000,"d":"€ 1,000"}]
[null,"mrt","Marloe","Eten",{"v":125,"d":"€ 125"}]
[null,"Mrt","Papa","Eten",{"v":235,"d":"€ 235"}]
[null,"mrt","Mama","Gas, water en elektra",{"v":20,"d":"€ 20"}]
[null,"apr","Marloe","Eten",{"v":125,"d":"€ 125"}]
[null,"Apr","Papa","Eten",{"v":74,"d":"€ 74"}]
[null,"apr","Mama","Gas, water en elektra",{"v":70,"d":"€ 70"}]

{"sheet":"18","index":18,"n_rows":146,"n_cols":5,"rows_kept":146}
["Iets wat u in gedachten moet houden: Als u meer details nodig hebt, is het mogelijk veel meer rijvelden of kolomvelden toe te voegen. In dit voorbeeld hebben we drie rijvelden."]
["De draaitabel voor dit voorbeeld loopt van cel D8 tot en met E29 en heeft in kolom D velden voor Seizoen, Koper, en Type, met Som van bedrag in kolom E."]
["TIP VAN EXPERT\nOok al kunt u veel velden toevoegen, dat wil nog niet zeggen dat het ook moet. In dit voorbeeld werkt het prima. Maar soms maken te veel velden, met alle inspringingen, een draaitabel te gecompliceerd voor andere mensen. "]
["Druk op CTRL+PAGE DOWN om door te gaan met deze zelfstudie. Druk op CTRL+PAGE UP om naar het vorige blad te gaan."]
[]
[]
[]
[{"$nulls":3},"Rijlabels","Som van Bedrag"]
[{"$nulls":3},"Herfst",{"v":5425,"d":"€ 5,425"}]
[{"$nulls":3},"Mama",{"v":5425,"d":"€ 5,425"}]
[{"$nulls":3},"Gas, water en elektra",{"v":530,"d":"€ 530"}]
[{"$nulls":3},"Huur",{"v":3220,"d":"€ 3,220"}]
[{"$nulls":3},"Nutsvoorzieningen",{"v":403,"d":"€ 403"}]
[{"$nulls":3},"Verzekering",{"v":1272,"d":"€ 1,272"}]
[{"$nulls":3},"Lente",{"v":4760,"d":"€ 4,760"}]
[{"$nulls":3},"Papa",{"v":4760,"d":"€ 4,760"}]
[{"$nulls":3},"Gas, water en elektra",{"v":1320,"d":"€ 1,320"}]
[{"$nulls":3},"Huur",{"v":2400,"d":"€ 2,400"}]
[{"$nulls":3},"Verzekering",{"v":1040,"d":"€ 1,040"}]
[{"$nulls":3},"Zomer",{"v":3473,"d":"€ 3,473"}]
[{"$nulls":3},"Mama",{"v":3473,"d":"€ 3,473"}]
[{"$nulls":3},"Gas, water en elektra",{"v":1133,"d":"€ 1,133"}]
[{"$nulls":3},"Huur",{"v":1260,"d":"€ 1,260"}]
[{"$nulls":3},"Verzekering",{"v":1080,"d":"€ 1,080"}]
[{"$nulls":3},"Winter",{"v":4100,"d":"€ 4,100"}]
[{"$nulls":3},"Papa",{"v":4100,"d":"€ 4,100"}]
[{"$nulls":3},"Gas, water en elektra",{"v":1650,"d":"€ 1,650"}]
[{"$nulls":3},"Huur",{"v":1420,"d":"€ 1,420"}]
[{"$nulls":3},"Verzekering",{"v":1030,"d":"€ 1,030"}]
[{"$nulls":3},"Eindtotaal",{"v":17758,"d":"€ 17,758"}]
{"$rows_empty":67}
[null,"Koper","Seizoen","Type","Bedrag"]
[null,"Papa","Winter","Verzekering",{"v":300,"d":"€ 300"}]
[null,"Papa","Winter","Huur",{"v":200,"d":"€ 200"}]
[null,"Papa","Winter","Gas, water en elektra",{"v":400,"d":"€ 400"}]
[null,"Papa","Winter","Verzekering",{"v":300,"d":"€ 300"}]
[null,"Papa","Winter","Huur",{"v":800,"d":"€ 800"}]
[null,"Papa","Winter","Gas, water en elektra",{"v":400,"d":"€ 400"}]
[null,"Papa","Winter","Verzekering",{"v":200,"d":"€ 200"}]
[null,"Papa","Winter","Huur",{"v":300,"d":"€ 300"}]
[null,"Papa","Winter","Gas, water en elektra",{"v":450,"d":"€ 450"}]
[null,"Papa","Winter","Verzekering",{"v":230,"d":"€ 230"}]
[null,"Papa","Winter","Huur",{"v":120,"d":"€ 120"}]
[null,"Papa","Winter","Gas, water en elektra",{"v":400,"d":"€ 400"}]
[null,"Papa","Lente","Verzekering",{"v":210,"d":"€ 210"}]
[null,"Papa","Lente","Huur",{"v":300,"d":"€ 300"}]
[null,"Papa","Lente","Gas, water en elektra",{"v":400,"d":"€ 400"}]
[null,"Papa","Lente","Verzekering",{"v":230,"d":"€ 230"}]
[null,"Papa","Lente","Huur",{"v":900,"d":"€ 900"}]
[null,"Papa","Lente","Gas, water en elektra",{"v":300,"d":"€ 300"}]
[null,"Papa","Lente","Verzekering",{"v":200,"d":"€ 200"}]
[null,"Papa","Lente","Huur",{"v":1000,"d":"€ 1,000"}]
[null,"Papa","Lente","Gas, water en elektra",{"v":220,"d":"€ 220"}]
[null,"Papa","Lente","Verzekering",{"v":400,"d":"€ 400"}]
[null,"Papa","Lente","Huur",{"v":200,"d":"€ 200"}]
[null,"Papa","Lente","Gas, water en elektra",{"v":400,"d":"€ 400"}]
[null,"Mama","Zomer","Verzekering",{"v":100,"d":"€ 100"}]
[null,"Mama","Zomer","Huur",{"v":30,"d":"€ 30"}]
[null,"Mama","Zomer","Gas, water en elektra",{"v":123,"d":"€ 123"}]
[null,"Mama","Zomer","Verzekering",{"v":300,"d":"€ 300"}]
[null,"Mama","Zomer","Huur",{"v":350,"d":"€ 350"}]
[null,"Mama","Zomer","Gas, water en elektra",{"v":230,"d":"€ 230"}]
[null,"Mama","Zomer","Verzekering",{"v":120,"d":"€ 120"}]
[null,"Mama","Zomer","Huur",{"v":640,"d":"€ 640"}]
[null,"Mama","Zomer","Gas, water en elektra",{"v":530,"d":"€ 530"}]
[null,"Mama","Zomer","Verzekering",{"v":560,"d":"€ 560"}]
[null,"Mama","Zomer","Huur",{"v":240,"d":"€ 240"}]
[null,"Mama","Zomer","Gas, water en elektra",{"v":250,"d":"€ 250"}]
[null,"Mama","Herfst","Verzekering",{"v":62,"d":"€ 62"}]
[null,"Mama","Herfst","Huur",{"v":600,"d":"€ 600"}]
[null,"Mama","Herfst","Gas, water en elektra",{"v":340,"d":"€ 340"}]
[null,"Mama","Herfst","Verzekering",{"v":205,"d":"€ 205"}]
[null,"Mama","Herfst","Huur",{"v":500,"d":"€ 500"}]
[null,"Mama","Herfst","Nutsvoorzieningen",{"v":403,"d":"€ 403"}]
[null,"Mama","Herfst","Verzekering",{"v":503,"d":"€ 503"}]
[null,"Mama","Herfst","Huur",{"v":2000,"d":"€ 2,000"}]
[null,"Mama","Herfst","Gas, water en elektra",{"v":140,"d":"€ 140"}]
[null,"Mama","Herfst","Verzekering",{"v":502,"d":"€ 502"}]
[null,"Mama","Herfst","Huur",{"v":120,"d":"€ 120"}]
[null,"Mama","Herfst","Gas, water en elektra",{"v":50,"d":"€ 50"}]

{"sheet":"19","index":19,"n_rows":55,"n_cols":5,"rows_kept":55}
["Klaar om te oefenen? Neem de gelegenheid om de gegevens hieronder in de cellen B7 tot en met E55 te bekijken. Wanneer u klaar bent, gaat u naar het volgende blad en kunt u oefenen wat u tot nu toe hebt geleerd. "]
["Het is niet nodig om alle rijen gegevens te bekijken. Bekijk alleen de veldnamen in rij 7. U werkt hiermee op het volgende blad. "]
["Druk op CTRL+PAGE DOWN om door te gaan met deze zelfstudie. Druk op CTRL+PAGE UP om naar het vorige blad te gaan."]
[]
[]
[]
[null,"Seizoen","Verkoper","Product","Verkochte eenheden"]
[null,"Winter","Jenny","Sinaasappels",300]
[null,"Winter","George","Grapefruit",200]
[null,"Winter","Wander","Appels",400]
[null,"Winter","Jenny","Bananen",300]
[null,"Winter","George","Sinaasappels",800]
[null,"Winter","Wander","Grapefruit",400]
[null,"Winter","Jenny","Appels",200]
[null,"Winter","George","Bananen",300]
[null,"Winter","Wander","Sinaasappels",450]
[null,"Winter","Jenny","Grapefruit",230]
[null,"Winter","George","Appels",120]
[null,"Winter","Wander","Bananen",400]
[null,"Lente","Jenny","Bieten",210]
[null,"Lente","George","Aardappelen",300]
[null,"Lente","Wander","Sla",400]
[null,"Lente","Jenny","Radijs",230]
[null,"Lente","George","Bieten",900]
[null,"Lente","Wander","Aardappelen",300]
[null,"Lente","Jenny","Sla",200]
[null,"Lente","George","Radijs",{"v":1000,"d":"1,000"}]
[null,"Lente","Wander","Bieten",220]
[null,"Lente","Jenny","Aardappelen",400]
[null,"Lente","George","Sla",200]
[null,"Lente","Wander","Radijs",400]
[null,"Zomer","Jenny","Bosbessen",100]
[null,"Zomer","George","Aardbeien",30]
[null,"Zomer","Wander","Druiven",123]
[null,"Zomer","Jenny","Pompoenen",300]
[null,"Zomer","George","Bosbessen",350]
[null,"Zomer","Wander","Aardbeien",230]
[null,"Zomer","Jenny","Druiven",120]
[null,"Zomer","George","Pompoenen",640]
[null,"Zomer","Wander","Bosbessen",530]
[null,"Zomer","Jenny","Aardbeien",560]
[null,"Zomer","George","Druiven",240]
[null,"Zomer","Wander","Pompoenen",250]
[null,"Herfst","Jenny","Pompoen",62]
[null,"Herfst","George","Courgette",600]
[null,"Herfst","Wander","Appels",340]
[null,"Herfst","Jenny","Sinaasappels",205]
[null,"Herfst","George","Pompoen",500]
[null,"Herfst","Wander","Courgette",403]
[null,"Herfst","Jenny","Appels",503]
[null,"Herfst","George","Sinaasappels",{"v":2000,"d":"2,000"}]
[null,"Herfst","Wander","Pompoen",140]
[null,"Herfst","Jenny","Courgette",502]
[null,"Herfst","George","Appels",120]
[null,"Herfst","Wander","Sinaasappels",50]

{"sheet":"20","index":20,"n_rows":17,"n_cols":9,"rows_kept":17}
["1. Het draaitabelgebied voor dit voorbeeld zijn de cellen B12 tot en met C17. Ga naar een van deze cellen. \n\n"]
["2. Druk op Alt+JS, L2 om de lijst met draaitabelvelden te openen. Het tekstvak Zoeken heeft standaard de focus: 'Typ woorden waarnaar u wilt zoeken' om te bewerken. Typ niets, druk in plaats daarvan een keer op Tab. OPMERKING: als de Lijst met velden niet verschijnt, druk dan opnieuw op ALT+JS, L2."]
["3. Gebruik de pijltoetsen om naar het veld Verkoper te gaan. Druk op de SPATIEBALK om het veld Verkoper toe te voegen aan het gebied Rijen. Als u de gegevens van de Verkoper wilt weergeven in het Kolommen, gebruikt u de Tab-toets om naar het veld Verkoper in het Rij-gedeelte te gaan, vervolgens drukt u op de SPATIEBALK en selecteert u 'Naar Kolomlabels verplaatsen'. Druk op ESC om het deelvenster Draaitabelvelden te sluiten. "]
["4. Bepaal wie het meeste eenheden heeft verkocht in de herfst en maak vervolgens een selectie in cel I8. "]
["Druk op CTRL+PAGE DOWN om door te gaan met deze zelfstudie. Druk op CTRL+PAGE UP om naar het vorige blad te gaan."]
[]
[{"$nulls":8},"Kies er een:"]
[]
[{"$nulls":8},{"$f":"IF($I$8=\"George\",\"Dat Klopt.\",IF($I$8=\"Wander\",\"Probeer het nog eens...\",IF($I$8=\"Jenny\",\"Niet helemaal...\",IF($I$8=\" \",\" \",\" \"))))","v":" "}]
[]
[]
[null,"Rijlabels","Som van Verkochte eenheden"]
[null,"Herfst",{"v":5425,"d":"5,425"}]
[null,"Lente",{"v":4760,"d":"4,760"}]
[null,"Zomer",{"v":3473,"d":"3,473"}]
[null,"Winter",{"v":4100,"d":"4,100"}]
[null,"Eindtotaal",{"v":17758,"d":"17,758"}]

{"sheet":"21","index":21,"n_rows":14,"n_cols":10,"rows_kept":14}
["1. Klik op cel B13 om de draaitabel 'Som van verkochte eenheden' te activeren.\n\n"]
["2. Druk op Alt+JS, L2 om de lijst met draaitabelvelden te openen. Het tekstvak Zoeken heeft standaard de focus: 'Typ woorden waarnaar u wilt zoeken' om te bewerken. Typ niets, druk in plaats daarvan een keer op Tab. OPMERKING: als de Lijst met velden niet verschijnt, druk dan opnieuw op ALT+JS, L2."]
["3. Gebruik de pijltoetsen en de SPATIEBALK om het voorbeeld uit te vouwen als verticale draaitabel met de seizoenen aan de linkerkant en de verkopers ingesprongen onder de seizoenen. Druk op de ESC-toets om het draaitabelvelden Velden te verlaten. "]
["Druk op CTRL+PAGE DOWN om door te gaan met deze zelfstudie. Druk op CTRL+PAGE UP om naar het vorige blad te gaan."]
[{"$nulls":9},{"$f":"IF(AND(B$14=\"Herfst\",$C$17=933),\"Goed gedaan. U hebt een secundair\",\" \")","v":" "}]
[{"$nulls":9},{"$f":"IF(AND(B$14=\"Herfst\",$C$17=933),\"rijveld geplaatst. Blader nu naar\",\" \")","v":" "}]
[{"$nulls":9},{"$f":"IF(AND(B$14=\"Herfst\",$C$17=933),\"beneden en klik op Volgende..\",\" \")","v":" "}]
[]
[]
[]
[]
[]
[null,"Som van verkochte eenheden"]
[null,{"v":17758,"d":"17,758"}]

{"sheet":"22","index":22,"n_rows":14,"n_cols":10,"rows_kept":14}
["1. Klik op cel B13 om de draaitabel 'Som van verkochte eenheden' te activeren."]
["2. Druk op Alt+JS, L2 om de lijst met draaitabelvelden te openen. Het tekstvak Zoeken heeft standaard de focus: 'Typ woorden waarnaar u wilt zoeken' om te bewerken. Typ niets, druk in plaats daarvan een keer op Tab. OPMERKING: als de Lijst met velden niet verschijnt, druk dan opnieuw op ALT+JS, L2."]
["3. Gebruik de pijltoetsen en de SPATIEBALK om het voorbeeld aan te passen zodat elk product in een eigen rij wordt getoond en elk seizoen in een eigen kolom."]
["Druk op CTRL+PAGE DOWN om door te gaan met deze zelfstudie. Druk op CTRL+PAGE UP om naar het vorige blad te gaan.",{"$nulls":8},{"$f":"IF(AND($B$15=\"Aardappelen\",$G$28=800),\"Goed gedaan. U hebt een\",\" \")","v":" "}]
[{"$nulls":9},{"$f":"IF(AND($B$15=\"Aardappelen\",$G$28=800),\"rijveld aan de linkerkant,\",\" \")","v":" "}]
[{"$nulls":9},{"$f":"IF(AND($B$15=\"Aardappelen\",$G$28=800),\"geplaatst en een kolomveld\",\" \")","v":" "}]
[{"$nulls":9},{"$f":"IF(AND($B$15=\"Aardappelen\",$G$28=800),\"met vier nieuwe kolommen. Blader\",\" \")","v":" "}]
[{"$nulls":9},{"$f":"IF(AND($B$15=\"Aardappelen\",$G$28=800),\"naar beneden en klik op Volgende...\",\" \")","v":" "}]
[]
[]
[]
[]
[null,"Som van verkochte eenheden"]
[null,{"v":17758,"d":"17,758"}]

{"sheet":"23","index":23,"n_rows":16,"n_cols":18,"rows_kept":16}
["1. Klik op cel B13 om de draaitabel 'Som van verkochte eenheden' te activeren.\n\n"]
["2. Druk op Alt+JS, L2 om de lijst met draaitabelvelden te openen. Het tekstvak Zoeken heeft standaard de focus: 'Typ woorden waarnaar u wilt zoeken' om te bewerken. Typ niets, druk in plaats daarvan een keer op Tab. OPMERKING: als de Lijst met velden niet verschijnt, druk dan opnieuw op ALT+JS, L2."]
["3. Gebruik de Tab- en pijltoetsen en de SPATIEBALK om het voorbeeld aan te passen zodat de Verkopers aan de linkerkant worden getoond, met daaronder de Seizoenen ingesprongen."]
["Druk op CTRL+PAGE DOWN om door te gaan met deze zelfstudie. Druk op CTRL+PAGE UP om naar het vorige blad te gaan."]
[{"$nulls":9},{"$f":"IF(AND($B$14=\"Wander\",$C$14=5036),\"Goed gedaan. Nu zijn de gegevens\",\" \")","v":" "}]
[{"$nulls":9},{"$f":"IF(AND($B$14=\"Wander\",$C$14=5036),\"eenvoudiger te lezen. Blader naar\",\" \")","v":" "}]
[{"$nulls":9},{"$f":"IF(AND($B$14=\"Wander\",$C$14=5036),\"beneden en klik op Volgende...\",\" \")","v":" "}]
[]
[]
[]
[]
[]
[null,null,"Kolomlabels"]
[null,null,"Wander",{"$nulls":3},"Totaal Wander","George",{"$nulls":3},"Totaal George","Jenny",{"$nulls":3},"Totaal Jenny","Eindtotaal"]
[null,null,"Herfst","Lente","Zomer","Winter",null,"Herfst","Lente","Zomer","Winter",null,"Herfst","Lente","Zomer","Winter"]
[null,"Som van verkochte eenheden",933,{"v":1320,"d":"1,320"},{"v":1133,"d":"1,133"},{"v":1650,"d":"1,650"},{"v":5036,"d":"5,036"},{"v":3220,"d":"3,220"},{"v":2400,"d":"2,400"},{"v":1260,"d":"1,260"},{"v":1420,"d":"1,420"},{"v":8300,"d":"8,300"},{"v":1272,"d":"1,272"},{"v":1040,"d":"1,040"},{"v":1080,"d":"1,080"},{"v":1030,"d":"1,030"},{"v":4422,"d":"4,422"},{"v":17758,"d":"17,758"}]

{"sheet":"24","index":24,"n_rows":14,"n_cols":8,"rows_kept":14}
["1. Klik op cel B13 om de draaitabel 'Som van verkochte eenheden' te activeren."]
["2. Druk op Alt+JS, L2 om de lijst met draaitabelvelden te openen. Het tekstvak Zoeken heeft standaard de focus: 'Typ woorden waarnaar u wilt zoeken' om te bewerken. Typ niets, druk in plaats daarvan een keer op Tab. OPMERKING: als de Lijst met velden niet verschijnt, druk dan opnieuw op ALT+JS, L2."]
["3. Gebruik de Tab- en pijltoetsen en de SPATIEBALK om het voorbeeld aan te passen, zodat elke Verkoper zijn eigen kolomvelden heeft met de Seizoenen aan de linkerkant en de Producten eronder ingesprongen."]
["4. Selecteer cel I9 en kies hoeveel grapefruits Wander in de winter heeft verkocht."]
["Druk op CTRL+PAGE DOWN om door te gaan met deze zelfstudie. Druk op CTRL+PAGE UP om naar het vorige blad te gaan."]
[]
[]
[{"$nulls":7},"Kies er een:"]
[]
[{"$nulls":7},{"$f":"IF($H$9=400,\"Dat is goed.\",IF($H$9=530,\"Probeer het nog eens...\",IF($H$9=123,\"Niet helemaal...\",\" \")))","v":" "}]
[]
[]
[null,"Som van verkochte eenheden"]
[null,{"v":17758,"d":"17,758"}]

{"sheet":"Meer informatie","index":25,"n_rows":8,"n_cols":1,"rows_kept":8}
["Goed gedaan. Zijn draaitabellen niet geweldig?"]
["Maar ga vooral door. Er is nog veel meer te leren."]
["Meer informatie over draaitabellen\nOntdek wat u nog meer kunt doen door dit nuttige artikel over draaitabellen te lezen."]
["Over vernieuwen\nLees dit belangrijke artikel over hoe u draaitabellen vernieuwt. "]
["Community\nKom in contact met andere enthousiaste gebruikers van Excel. Ze kunnen u helpen en u kunt hen helpen."]
[]
[]
[" "]